fUSD/lending_fUSD_20250207
["ID","MTS","AMOUNT","RATE_DAILY","PERIOD"]
[352037807,1738894237826,-500.0,0.00016438,2]
[352037808,1738894237835,-515.83311421,0.00016438,2]
[352037809,1738894237847,-500.0,0.00016438,2]
[352037810,1738894237856,-500.0,0.00016438,2]
[352037811,1738894237865,-762.81,0.00016438,2]
[352037812,1738894237875,-508.27407018,0.00016438,2]
[352037813,1738894237885,-259.76091923,0.00016438,2]
[352037814,1738894237895,-500.0,0.00016438,2]
[352037815,1738894237907,-630.42,0.00016438,2]
[352037816,1738894237917,-500.0,0.00016438,2]
[352037817,1738894237927,-500.0,0.00016438,2]
[352037818,1738894237937,-519.14700694,0.00016438,2]
[352037819,1738894237947,-491.05697657,0.00016438,2]
[352037820,1738894237957,-500.0,0.00016438,2]
[352037821,1738894237966,-516.921876,0.00016438,2]
[352037822,1738894237975,-378.19,0.00016438,2]
[352037823,1738894237984,-1841.22053389,0.0001646,2]
[352037824,1738894237994,-500.0,0.00016473,2]
[352037825,1738894238003,-500.0,0.00016473,2]
[352037826,1738894238013,-86425.17356251,0.000165,2]
[352037827,1738894238023,-500.0,0.00016508,2]
[352037828,1738894238032,-658.0665945,0.00016525,2]
[352037829,1738894238042,-342.54427522,0.00016562,2]
[352037830,1738894238052,-937.12,0.00016574,2]
[352037831,1738894238061,-923.25,0.00016574,2]
[352037846,1738894238209,-716.52,0.00016574,2]
[352037848,1738894238223,-910.28,0.00016574,2]
[352037850,1738894238233,-185.742537,0.00016574,2]
[352037852,1738894238243,-717.79,0.00016574,2]
[352037854,1738894238252,-683.15,0.00016574,2]
[352037856,1738894238262,-1105.14,0.00016574,2]
[352037858,1738894238272,-844.09967765,0.00016574,2]
[352037860,1738894238284,-835.55,0.00016574,2]
[352037862,1738894238294,-500.0,0.00016574,2]
[352037863,1738894238303,-873.79,0.00016574,2]
[352037865,1738894238313,-300.0,0.00016574,2]
[352037867,1738894238322,-500.0,0.00016575,2]
[352037869,1738894238332,-508.72480575,0.00016575,2]
[352037871,1738894238341,-506.85438407,0.00016575,2]
[352037873,1738894238350,-502.18279018,0.00016575,2]
[352037875,1738894238360,-510.21000486,0.00016575,2]
[352037877,1738894238370,-507.08208977,0.00016575,2]
[352037878,1738894238379,-500.0,0.00016575,2]
[352037880,1738894238389,-500.0,0.00016575,2]
[352037882,1738894238399,-500.0,0.00016575,2]
[352037884,1738894238410,-500.0,0.00016575,2]
[352037886,1738894238419,-500.0,0.00016575,2]
[352037888,1738894238429,-500.0,0.00016575,2]
[352037890,1738894238438,-500.0,0.00016575,2]
[352037892,1738894238448,-500.0,0.00016575,2]
[352037894,1738894238457,-500.0,0.00016575,2]
[352037895,1738894238466,-500.0,0.00016575,2]
[352037896,1738894238475,-500.0,0.00016575,2]
[352037897,1738894238484,-238.2392818,0.00016575,2]
[352037898,1738894238493,-500.0,0.00016575,2]
[352037899,1738894238502,-500.0,0.00016575,2]
[352037900,1738894238511,-500.0,0.00016575,2]
[352037901,1738894238521,-432.57,0.00016575,2]
[352037902,1738894238530,-500.0,0.00016575,2]
[352037903,1738894238539,-500.0,0.00016575,2]
[352037904,1738894238548,-500.0,0.00016575,2]
[352037905,1738894238557,-500.0,0.00016575,2]
[352037906,1738894238566,-500.0,0.00016575,2]
[352037907,1738894238575,-500.0,0.00016575,2]
[352037908,1738894238584,-500.0,0.00016575,2]
[352037909,1738894238593,-500.0,0.00016575,2]
[352037910,1738894238602,-500.0,0.00016575,2]
[352037911,1738894238611,-500.0,0.00016575,2]
[352037912,1738894238620,-500.0,0.00016575,2]
[352037913,1738894238629,-500.0,0.00016575,2]
[352037914,1738894238638,-500.0,0.00016575,2]
[352037916,1738894238647,-500.0,0.00016575,2]
[352037918,1738894238656,-506.39796806,0.00016575,2]
[352037920,1738894238666,-500.0,0.00016575,2]
[352037922,1738894238675,-500.0,0.00016575,2]
[352037924,1738894238685,-500.0,0.00016575,2]
[352037926,1738894238694,-500.0,0.00016575,2]
[352037928,1738894238703,-500.0,0.00016575,2]
[352037930,1738894238712,-500.0,0.00016575,2]
[352037932,1738894238722,-500.0,0.00016575,2]
[352037934,1738894238731,-500.0,0.00016575,2]
[352037936,1738894238740,-389.21553592,0.00016575,2]
[352037938,1738894238750,-504.47036255,0.00016575,2]
[352037940,1738894238759,-500.0,0.00016575,2]
[352037942,1738894238769,-500.0,0.00016575,2]
[352037944,1738894238780,-500.0,0.00016575,2]
[352037946,1738894238789,-510.09130229,0.00016575,2]
[352037948,1738894238799,-500.0,0.00016575,2]
[352037950,1738894238808,-500.0,0.00016575,2]
[352037952,1738894238817,-500.0,0.00016575,2]
[352037954,1738894238827,-500.0,0.00016575,2]
[352037956,1738894238837,-507.20713224,0.00016575,2]
[352037958,1738894238847,-565.19477677,0.00016575,2]
[352037960,1738894238856,-506.34391631,0.00016575,2]
[352037962,1738894238865,-503.06084184,0.00016575,2]
[352037964,1738894238875,-506.37213856,0.00016575,2]
[352037966,1738894238885,-500.0,0.00016575,2]
[352037968,1738894238894,-500.0,0.00016575,2]
[352037970,1738894238904,-500.0,0.00016575,2]
[352037972,1738894238915,-500.0,0.00016575,2]
[352037974,1738894238925,-617.00187224,0.00016575,2]
[352037976,1738894238934,-509.39607655,0.00016575,2]
[352037978,1738894238944,-500.0,0.00016575,2]
[352037980,1738894238954,-511.82242646,0.00016575,2]
[352037982,1738894238963,-500.0,0.00016575,2]
[352037984,1738894238972,-500.0,0.00016575,2]
[352037986,1738894238982,-500.0,0.00016575,2]
[352037988,1738894238992,-512.69779977,0.00016575,2]
[352037990,1738894239001,-500.0,0.00016575,2]
[352037992,1738894239011,-506.05449017,0.00016575,2]
[352037994,1738894239020,-500.0,0.00016575,2]
[352037996,1738894239029,-500.0,0.00016575,2]
[352037998,1738894239040,-500.0,0.00016575,2]
[352038000,1738894239050,-500.0,0.00016575,2]
[352038002,1738894239059,-500.0,0.00016575,2]
[352038004,1738894239068,-500.0,0.00016575,2]
[352038006,1738894239078,-500.0,0.00016575,2]
[352038008,1738894239087,-580.34071283,0.00016575,2]
[352038010,1738894239096,-500.0,0.00016575,2]
[352038012,1738894239106,-500.0,0.00016575,2]
[352038014,1738894239115,-500.0,0.00016575,2]
[352038016,1738894239125,-199.36818608,0.00016575,2]
[352038018,1738894239135,-480.53453704,0.00016575,2]
[352038020,1738894239144,-261.50265536,0.00016575,2]
[352038022,1738894239153,-500.0,0.00016575,2]
[352038024,1738894239164,-387.54964013,0.00016575,2]
[352038026,1738894239173,-500.0,0.00016575,2]
[352038028,1738894239184,-507.47170947,0.00016575,2]
[352038030,1738894239196,-500.0,0.00016575,2]
[352038032,1738894239207,-500.0,0.00016575,2]
[352038034,1738894239216,-500.0,0.00016575,2]
[352038036,1738894239227,-500.0,0.00016575,2]
[352038038,1738894239236,-500.0,0.00016575,2]
[352038040,1738894239246,-500.0,0.00016575,2]
[352038042,1738894239256,-500.0,0.00016575,2]
[352038044,1738894239265,-500.0,0.00016575,2]
[352038046,1738894239277,-500.0,0.00016575,2]
[352038048,1738894239287,-500.0,0.00016575,2]
[352038050,1738894239297,-593.57243506,0.00016575,2]
[352038052,1738894239306,-500.0,0.00016575,2]
[352038054,1738894239315,-500.0,0.00016575,2]
[352038056,1738894239325,-500.0,0.00016575,2]
[352038058,1738894239334,-500.0,0.00016575,2]
[352038060,1738894239344,-351.47,0.00016575,2]
[352038062,1738894239354,-500.0,0.00016575,2]
[352038064,1738894239364,-500.0,0.00016575,2]
[352038066,1738894239373,-500.0,0.00016575,2]
[352038068,1738894239383,-500.0,0.00016575,2]
[352038070,1738894239392,-247.56686875,0.00016575,2]
[352038072,1738894239402,-500.0,0.00016575,2]
[352038074,1738894239417,-500.0,0.00016575,2]
[352038076,1738894239427,-510.96804825,0.00016575,2]
[352038078,1738894239436,-500.0,0.00016575,2]
[352038080,1738894239445,-619.32,0.00016575,2]
[352038082,1738894239455,-339.707516,0.00016575,2]
[352038084,1738894239465,-500.0,0.00016575,2]
[352038086,1738894239474,-716.38,0.00016575,2]
[352038088,1738894239483,-500.0,0.00016575,2]
[352038090,1738894239492,-500.0,0.00016575,2]
[352038093,1738894239501,-500.0,0.00016575,2]
[352038095,1738894239510,-350.930323,0.00016575,2]
[352038097,1738894239521,-160.10538281,0.00016575,2]
[352038099,1738894239530,-500.0,0.00016575,2]
[352038101,1738894239539,-172.86,0.00016575,2]
[352038103,1738894239547,-500.0,0.00016575,2]
[352038105,1738894239557,-504.79363934,0.00016575,2]
[352038107,1738894239566,-459.27589639,0.00016575,2]
[352038109,1738894239575,-500.0,0.00016575,2]
[352038111,1738894239584,-500.0,0.00016575,2]
[352038113,1738894239593,-500.0,0.00016575,2]
[352038115,1738894239602,-500.0,0.00016575,2]
[352038117,1738894239612,-538.05,0.00016575,2]
[352038119,1738894239621,-500.0,0.00016575,2]
[352038122,1738894239630,-500.0,0.00016575,2]
[352038125,1738894239639,-500.0,0.00016575,2]
[352038127,1738894239649,-500.0,0.00016575,2]
[352038129,1738894239659,-500.0,0.00016575,2]
[352038131,1738894239668,-601.15,0.00016575,2]
[352038133,1738894239677,-500.0,0.00016575,2]
[352038135,1738894239687,-510.68,0.00016575,2]
[352038137,1738894239696,-500.0,0.00016575,2]
[352038139,1738894239705,-500.0,0.00016575,2]
[352038141,1738894239715,-192.94932172,0.00016575,2]
[352038143,1738894239724,-500.0,0.00016575,2]
[352038145,1738894239734,-500.0,0.00016575,2]
[352038147,1738894239743,-500.0,0.00016575,2]
[352038149,1738894239752,-547.18,0.00016575,2]
[352038151,1738894239762,-519.28,0.00016575,2]
[352038153,1738894239771,-500.0,0.00016575,2]
[352038155,1738894239780,-581.10646404,0.00016575,2]
[352038157,1738894239790,-559.89,0.00016575,2]
[352038159,1738894239799,-500.0,0.00016575,2]
[352038161,1738894239809,-500.0,0.00016575,2]
[352038163,1738894239818,-500.0,0.00016575,2]
[352038165,1738894239827,-500.0,0.00016575,2]
[352038167,1738894239836,-624.5,0.00016575,2]
[352038169,1738894239845,-495.51109857,0.00016575,2]
[352038171,1738894239854,-500.0,0.00016575,2]
[352038173,1738894239863,-500.0,0.00016575,2]
[352038175,1738894239872,-500.0,0.00016575,2]
[352038177,1738894239882,-500.0,0.00016575,2]
[352038179,1738894239891,-500.0,0.00016575,2]
[352038181,1738894239900,-616.32,0.00016575,2]
[352038183,1738894239910,-500.0,0.00016575,2]
[352038185,1738894239919,-885.48,0.00016575,2]
[352038187,1738894239928,-500.0,0.00016575,2]
[352038189,1738894239937,-500.0,0.00016575,2]
[352038191,1738894239947,-1982.77,0.00016575,2]
[352038193,1738894239956,-500.0,0.00016575,2]
[352038195,1738894239965,-500.0,0.00016575,2]
[352038197,1738894239975,-500.0,0.00016575,2]
[352038199,1738894239985,-769.39,0.00016575,2]
[352038201,1738894239995,-827.73,0.00016575,2]
[352038203,1738894240004,-500.0,0.00016575,2]
[352038205,1738894240014,-517.27462551,0.00016575,2]
[352038207,1738894240023,-500.0,0.00016575,2]
[352038209,1738894240033,-511.10875086,0.00016575,2]
[352038211,1738894240042,-802.39,0.00016575,2]
[352038213,1738894240052,-355.78960722,0.00016575,2]
[352038215,1738894240061,-710.9,0.00016575,2]
[352038217,1738894240071,-151.0,0.00016575,2]
[352038219,1738894240081,-506.17,0.00016575,2]
[352038221,1738894240090,-500.0,0.00016575,2]
[352038223,1738894240100,-500.0,0.00016575,2]
[352038226,1738894240109,-1302.24,0.00016575,2]
[352038228,1738894240118,-746.78,0.00016575,2]
[352038230,1738894240128,-510.87641973,0.00016575,2]
[352038232,1738894240137,-152.51666097,0.00016575,2]
[352038234,1738894240147,-500.0,0.00016575,2]
[352038236,1738894240157,-500.0,0.00016575,2]
[352038238,1738894240167,-501.35,0.00016575,2]
[352038240,1738894240176,-552.10788906,0.00016575,2]
[352038242,1738894240186,-500.0,0.00016575,2]
[352038244,1738894240195,-1564.76,0.00016575,2]
[352038246,1738894240206,-982.83,0.00016575,2]
[352038248,1738894240216,-656.9,0.00016575,2]
[352038250,1738894240225,-500.0,0.00016575,2]
[352038252,1738894240234,-500.0,0.00016575,2]
[352038254,1738894240244,-630.05,0.00016575,2]
[352038256,1738894240254,-500.0,0.00016575,2]
[352038258,1738894240263,-896.85,0.00016575,2]
[352038260,1738894240272,-554.18356102,0.00016575,2]
[352038262,1738894240282,-512.32819562,0.00016575,2]
[352038264,1738894240291,-1753.43,0.00016575,2]
[352038265,1738894240301,-795.09,0.00016575,2]
[352038267,1738894240311,-508.02172094,0.00016575,2]
[352038269,1738894240320,-500.0,0.00016575,2]
[352038272,1738894240330,-514.68528127,0.00016575,2]
[352038274,1738894240339,-500.0,0.00016575,2]
[352038276,1738894240348,-500.0,0.00016575,2]
[352038278,1738894240357,-500.0,0.00016575,2]
[352038280,1738894240367,-615.73,0.00016575,2]
[352038282,1738894240376,-500.0,0.00016575,2]
[352038283,1738894240386,-210.07182745,0.00016575,2]
[352038285,1738894240395,-500.0,0.00016575,2]
[352038287,1738894240404,-500.0,0.00016575,2]
[352038289,1738894240416,-500.0,0.00016575,2]
[352038292,1738894240425,-500.0,0.00016575,2]
[352038293,1738894240434,-500.0,0.00016575,2]
[352038296,1738894240444,-740.76,0.00016575,2]
[352038298,1738894240454,-1117.36,0.00016575,2]
[352038300,1738894240463,-500.0,0.00016575,2]
[352038302,1738894240472,-1534.02,0.00016575,2]
[352038304,1738894240481,-500.0,0.00016575,2]
[352038306,1738894240491,-767.96,0.00016575,2]
[352038308,1738894240500,-500.0,0.00016575,2]
[352038310,1738894240509,-500.0,0.00016575,2]
[352038312,1738894240518,-339.6040528,0.00016575,2]
[352038314,1738894240527,-970.94,0.00016575,2]
[352038316,1738894240536,-151.0,0.00016575,2]
[352038318,1738894240545,-635.4,0.00016575,2]
[352038320,1738894240554,-690.78,0.00016575,2]
[352038322,1738894240563,-500.0,0.00016575,2]
[352038324,1738894240573,-358.95998745,0.00016575,2]
[352038326,1738894240581,-500.0,0.00016575,2]
[352038332,1738894240632,-1191.53,0.00016575,2]
[352038334,1738894240641,-328.23386728,0.00016575,2]
[352038336,1738894240651,-500.0,0.00016575,2]
[352038338,1738894240660,-500.0,0.00016575,2]
[352038340,1738894240669,-1124.37,0.00016575,2]
[352038342,1738894240679,-500.0,0.00016575,2]
[352038344,1738894240689,-817.15,0.00016575,2]
[352038346,1738894240698,-500.0,0.00016575,2]
[352038348,1738894240707,-904.73,0.00016575,2]
[352038350,1738894240718,-845.03,0.00016575,2]
[352038352,1738894240727,-1509.15,0.00016575,2]
[352038354,1738894240736,-561.17,0.00016575,2]
[352038356,1738894240745,-744.53,0.00016575,2]
[352038358,1738894240754,-500.0,0.00016575,2]
[352038360,1738894240763,-908.62,0.00016575,2]
[352038361,1738894240772,-994.54,0.00016575,2]
[352038363,1738894240781,-2618.13,0.00016575,2]
[352038366,1738894240790,-1235.54,0.00016575,2]
[352038367,1738894240800,-500.0,0.00016575,2]
[352038369,1738894240809,-500.0,0.00016575,2]
[352038371,1738894240818,-821.64,0.00016575,2]
[352038373,1738894240827,-737.23,0.00016575,2]
[352038375,1738894240836,-1371.47,0.00016575,2]
[352038377,1738894240846,-647.76,0.00016575,2]
[352038379,1738894240855,-724.53,0.00016575,2]
[352038381,1738894240865,-689.9,0.00016575,2]
[352038384,1738894240875,-500.0,0.00016575,2]
[352038385,1738894240884,-500.0,0.00016575,2]
[352038388,1738894240894,-1381.18,0.00016575,2]
[352038389,1738894240903,-500.0,0.00016575,2]
[352038392,1738894240918,-1484.94,0.00016575,2]
[352038393,1738894240928,-750.07,0.00016575,2]
[352038396,1738894240937,-1266.99,0.00016575,2]
[352038398,1738894240949,-500.0,0.00016575,2]
[352038400,1738894240959,-454.93482199,0.00016575,2]
[352038402,1738894240968,-514.44,0.00016575,2]
[352038404,1738894240977,-500.0,0.00016575,2]
[352038406,1738894240986,-428.03162308,0.00016575,2]
[352038408,1738894240996,-1334.64,0.00016575,2]
[352038410,1738894241005,-500.0,0.00016575,2]
[352038412,1738894241015,-174.24003232,0.00016575,2]
[352038413,1738894241024,-1251.85,0.00016575,2]
[352038415,1738894241033,-1479.1,0.00016575,2]
[352038417,1738894241042,-500.0,0.00016575,2]
[352038419,1738894241051,-789.4,0.00016575,2]
[352038421,1738894241061,-500.0,0.00016575,2]
[352038423,1738894241070,-500.0,0.00016575,2]
[352038425,1738894241080,-500.0,0.00016575,2]
[352038427,1738894241089,-1035.18,0.00016575,2]
[352038429,1738894241098,-500.0,0.00016575,2]
[352038431,1738894241107,-529.45658525,0.00016575,2]
[352038433,1738894241116,-500.0,0.00016575,2]
[352038435,1738894241126,-2752.16,0.00016575,2]
[352038437,1738894241135,-883.28,0.00016575,2]
[352038439,1738894241144,-500.0,0.00016575,2]
[352038441,1738894241153,-1069.87,0.00016575,2]
[352038443,1738894241166,-318.67901443,0.00016575,2]
[352038445,1738894241175,-500.0,0.00016575,2]
[352038447,1738894241185,-742.48,0.00016575,2]
[352038449,1738894241194,-824.7,0.00016575,2]
[352038451,1738894241207,-500.0,0.00016575,2]
[352038453,1738894241217,-1711.49,0.00016575,2]
[352038455,1738894241226,-614.58,0.00016575,2]
[352038457,1738894241235,-320.70811503,0.00016575,2]
[352038459,1738894241245,-4000.0,0.00016575,2]
[352038461,1738894241255,-618.86,0.00016575,2]
[352038463,1738894241263,-741.78,0.00016575,2]
[352038465,1738894241272,-1118.32,0.00016575,2]
[352038467,1738894241281,-500.0,0.00016575,2]
[352038468,1738894241290,-1381.16,0.00016575,2]
[352038470,1738894241300,-514.26674583,0.00016575,2]
[352038472,1738894241309,-772.92,0.00016575,2]
[352038474,1738894241318,-500.0,0.00016575,2]
[352038476,1738894241327,-1589.8,0.00016575,2]
[352038478,1738894241336,-879.82,0.00016575,2]
[352038480,1738894241346,-500.0,0.00016575,2]
[352038482,1738894241355,-500.0,0.00016575,2]
[352038484,1738894241364,-553.53,0.00016575,2]
[352038486,1738894241374,-1324.07,0.00016575,2]
[352038488,1738894241383,-2219.79,0.00016575,2]
[352038490,1738894241392,-500.0,0.00016575,2]
[352038492,1738894241401,-2492.92,0.00016575,2]
[352038494,1738894241413,-516.0118913,0.00016575,2]
[352038496,1738894241422,-500.0,0.00016575,2]
[352038498,1738894241431,-500.0,0.00016575,2]
[352038500,1738894241440,-616.4,0.00016575,2]
[352038502,1738894241450,-500.0,0.00016575,2]
[352038504,1738894241459,-500.0,0.00016575,2]
[352038506,1738894241468,-500.0,0.00016575,2]
[352038508,1738894241477,-500.0,0.00016575,2]
[352038510,1738894241486,-796.97,0.00016575,2]
[352038512,1738894241496,-500.0,0.00016575,2]
[352038514,1738894241505,-830.49,0.00016575,2]
[352038516,1738894241516,-500.0,0.00016575,2]
[352038518,1738894241525,-500.0,0.00016575,2]
[352038520,1738894241534,-500.0,0.00016575,2]
[352038521,1738894241544,-500.0,0.00016575,2]
[352038523,1738894241553,-500.0,0.00016575,2]
[352038526,1738894241563,-489.5149189,0.00016575,2]
[352038528,1738894241573,-762.81,0.00016575,2]
[352038530,1738894241582,-500.0,0.00016575,2]
[352038532,1738894241591,-630.42,0.00016575,2]
[352038534,1738894241600,-500.0,0.00016575,2]
[352038536,1738894241609,-500.0,0.00016575,2]
[352038537,1738894241619,-500.0,0.00016575,2]
[352038538,1738894241627,-1841.22053389,0.000166,2]
[352038539,1738894241637,-780.2167491,0.00016612,2]
[352038540,1738894241646,-7125.38786851,0.00016612,2]
[352038541,1738894241655,-220.00126007,0.00016612,2]
[352038542,1738894241665,-1087.2305835,0.00016612,2]
[352038543,1738894241675,-1000.0,0.00016621,2]
[352038544,1738894241684,-1096.14400747,0.00016621,2]
[352038545,1738894241693,-1212.8165835,0.00016645,2]
[352038546,1738894241703,-617.38,0.00016658,30]
[352038547,1738894241712,-500.0,0.00016658,2]
[352038548,1738894241721,-2141.9494927,0.00016659,2]
[352038550,1738894241730,-151.79557587,0.00016659,2]
[352038552,1738894241740,-3076.0,0.00016702,2]
[352038554,1738894241749,-937.12,0.00016711,2]
[352038556,1738894241759,-923.25,0.00016711,2]
[352038558,1738894241768,-716.52,0.00016711,2]
[352038560,1738894241777,-910.28,0.00016711,2]
[352038562,1738894241786,-717.79,0.00016711,2]
[352038564,1738894241795,-683.15,0.00016711,2]
[352038566,1738894241804,-1105.14,0.00016711,2]
[352038568,1738894241813,-835.55,0.00016711,2]
[352038570,1738894241822,-500.0,0.00016711,2]
[352038571,1738894241831,-873.79,0.00016711,2]
[352038573,1738894241840,-300.0,0.00016711,2]
[352038575,1738894241849,-500.0,0.00016712,2]
[352038577,1738894241859,-434.55225702,0.00016712,2]
[352038579,1738894241868,-515.58719189,0.00016712,2]
[352038581,1738894241877,-500.0,0.00016712,2]
[352038583,1738894241886,-529.12213341,0.00016712,2]
[352038585,1738894241895,-500.0,0.00016712,2]
[352038587,1738894241905,-500.0,0.00016712,2]
[352038589,1738894241915,-500.0,0.00016712,2]
[352038591,1738894241924,-500.0,0.00016712,2]
[352038593,1738894241933,-500.0,0.00016712,2]
[352038595,1738894241942,-578.90179708,0.00016712,2]
[352038597,1738894241951,-500.0,0.00016712,2]
[352038599,1738894241961,-500.0,0.00016712,2]
[352038601,1738894241970,-587.15937929,0.00016712,2]
[352038603,1738894241980,-500.0,0.00016712,2]
[352038605,1738894241990,-432.57,0.00016712,2]
[352038607,1738894241999,-500.0,0.00016712,2]
[352038609,1738894242008,-500.0,0.00016712,2]
[352038611,1738894242017,-500.0,0.00016712,2]
[352038613,1738894242027,-559.33153135,0.00016712,2]
[352038615,1738894242036,-507.32896179,0.00016712,2]
[352038617,1738894242045,-500.0,0.00016712,2]
[352038619,1738894242054,-508.37510802,0.00016712,2]
[352038621,1738894242063,-500.0,0.00016712,2]
[352038623,1738894242073,-500.0,0.00016712,2]
[352038625,1738894242082,-500.0,0.00016712,2]
[352038627,1738894242091,-525.8625811,0.00016712,2]
[352038629,1738894242100,-507.8782895,0.00016712,2]
[352038631,1738894242110,-500.0,0.00016712,2]
[352038633,1738894242119,-510.08082336,0.00016712,2]
[352038635,1738894242128,-508.42212136,0.00016712,2]
[352038637,1738894242137,-613.62804031,0.00016712,2]
[352038639,1738894242147,-500.0,0.00016712,2]
[352038641,1738894242156,-500.0,0.00016712,2]
[352038643,1738894242166,-500.0,0.00016712,2]
[352038645,1738894242175,-506.51360275,0.00016712,2]
[352038647,1738894242184,-506.8521286,0.00016712,2]
[352038649,1738894242194,-500.0,0.00016712,2]
[352038651,1738894242205,-418.83983581,0.00016712,2]
[352038653,1738894242214,-500.0,0.00016712,2]
[352038655,1738894242223,-500.0,0.00016712,2]
[352038657,1738894242233,-507.30060433,0.00016712,2]
[352038659,1738894242242,-530.70475747,0.00016712,2]
[352038661,1738894242252,-506.50783909,0.00016712,2]
[352038662,1738894242262,-500.0,0.00016712,2]
[352038664,1738894242271,-500.0,0.00016712,2]
[352038667,1738894242282,-500.0,0.00016712,2]
[352038669,1738894242291,-523.96060255,0.00016712,2]
[352038670,1738894242300,-500.0,0.00016712,2]
[352038672,1738894242310,-500.0,0.00016712,2]
[352038674,1738894242319,-621.60536625,0.00016712,2]
[352038676,1738894242328,-500.0,0.00016712,2]
[352038678,1738894242337,-500.0,0.00016712,2]
[352038680,1738894242346,-500.0,0.00016712,2]
[352038682,1738894242355,-422.45026218,0.00016712,2]
[352038684,1738894242364,-500.0,0.00016712,2]
[352038686,1738894242374,-500.0,0.00016712,2]
[352038688,1738894242384,-500.0,0.00016712,2]
[352038691,1738894242397,-500.0,0.00016712,2]
[352038693,1738894242407,-500.0,0.00016712,2]
[352038694,1738894242418,-500.0,0.00016712,2]
[352038696,1738894242427,-500.0,0.00016712,2]
[352038698,1738894242435,-500.0,0.00016712,2]
[352038700,1738894242445,-500.0,0.00016712,2]
[352038702,1738894242454,-500.0,0.00016712,2]
[352038705,1738894242463,-500.0,0.00016712,2]
[352038708,1738894242472,-500.0,0.00016712,2]
[352038710,1738894242482,-500.0,0.00016712,2]
[352038713,1738894242491,-307.85243112,0.00016712,2]
[352038716,1738894242500,-500.0,0.00016712,2]
[352038719,1738894242510,-500.0,0.00016712,2]
[352038721,1738894242519,-500.0,0.00016712,2]
[352038723,1738894242528,-500.0,0.00016712,2]
[352038725,1738894242537,-500.0,0.00016712,2]
[352038727,1738894242546,-500.0,0.00016712,2]
[352038729,1738894242555,-500.0,0.00016712,2]
[352038731,1738894242565,-500.0,0.00016712,2]
[352038733,1738894242575,-500.0,0.00016712,2]
[352038735,1738894242584,-500.0,0.00016712,2]
[352038737,1738894242594,-473.82835296,0.00016712,2]
[352038739,1738894242603,-351.47,0.00016712,2]
[352038742,1738894242612,-500.0,0.00016712,2]
[352038745,1738894242621,-296.28083739,0.00016712,2]
[352038749,1738894242631,-500.0,0.00016712,2]
[352038752,1738894242641,-500.0,0.00016712,2]
[352038755,1738894242650,-500.0,0.00016712,2]
[352038758,1738894242659,-500.0,0.00016712,2]
[352038761,1738894242670,-500.0,0.00016712,2]
[352038764,1738894242679,-619.32,0.00016712,2]
[352038767,1738894242688,-339.707516,0.00016712,2]
[352038770,1738894242698,-500.0,0.00016712,2]
[352038773,1738894242707,-716.38,0.00016712,2]
[352038775,1738894242716,-500.0,0.00016712,2]
[352038778,1738894242725,-500.0,0.00016712,2]
[352038781,1738894242734,-500.0,0.00016712,2]
[352038784,1738894242744,-350.930323,0.00016712,2]